[Event "Internationales Werder Bremen IM-Turnier"]
[Site "SV Werder Bremen, Clubräume in der Hemelinger Straße 17, Germany"]
[Date "2018.06.21"]
[Round "6.4"]
[White "Kardoeus, David"]
[Black "Grabarczyk, Miroslav"]
[Result "0-1"]
[TimeControl "90 Minuten/40 Züge + 30 Minuten/Rest + 30 Sekunden ab dem ersten Zug"]
[BlackTitle "GM"]
[WhiteFideId "12912050"]
[BlackFideId "1101684"]
[WhiteElo "2226"]
[BlackElo "2402"]

1. e4 {[%clk 01:30:56]} {[%emt 00:00:03]} e5 {[%clk 01:30:44]} {[%emt
00:00:15]} 2. Nf3 {[%clk 01:31:12]} {[%emt 00:00:14]} Nc6 {[%clk 01:30:53]}
{[%emt 00:00:21]} 3. d4 {[%clk 01:31:27]} {[%emt 00:00:16]} exd4 {[%clk
01:31:01]} {[%emt 00:00:21]} 4. Nxd4 {[%clk 01:31:46]} {[%emt 00:00:10]} Bb4+
{[%clk 01:30:18]} {[%emt 00:01:14]} 5. c3 {[%clk 01:31:55]} {[%emt 00:00:22]}
Bc5 {[%clk 01:30:40]} {[%emt 00:00:08]} 6. Nxc6 {[%clk 01:32:08]} {[%emt
00:00:16]} bxc6 {[%clk 01:30:23]} {[%emt 00:00:48]} 7. Bc4 {[%clk 01:32:13]}
{[%emt 00:00:25]} d6 {[%clk 01:22:38]} {[%emt 00:08:15]} 8. O-O {[%clk
01:31:05]} {[%emt 00:01:37]} Ne7 {[%clk 01:16:51]} {[%emt 00:06:18]} 9. Qh5
{[%clk 01:31:06]} {[%emt 00:00:29]} O-O {[%clk 01:16:54]} {[%emt 00:00:27]} 10.
Bg5 {[%clk 01:31:25]} {[%emt 00:00:11]} Qe8 {[%clk 01:11:20]} {[%emt 00:06:04]}
11. Nd2 {[%clk 01:21:40]} {[%emt 00:10:15]} Be6 {[%clk 01:10:33]} {[%emt
00:01:17]} 12. Bxe7 {[%clk 01:08:35]} {[%emt 00:13:35]} Qxe7 {[%clk 01:10:46]}
{[%emt 00:00:17]} 13. Ba6 {[%clk 01:08:12]} {[%emt 00:00:53]} Bc8 {[%clk
01:06:19]} {[%emt 00:04:57]} 14. Qe2 {[%clk 01:07:17]} {[%emt 00:01:25]} d5
{[%clk 01:00:41]} {[%emt 00:06:08]} 15. b4 {[%clk 01:00:10]} {[%emt 00:07:37]}
Bd6 {[%clk 00:58:57]} {[%emt 00:02:12]} 16. Bxc8 {[%clk 00:59:02]} {[%emt
00:01:40]} Raxc8 {[%clk 00:51:59]} {[%emt 00:07:28]} 17. f4 {[%clk 00:56:24]}
{[%emt 00:03:06]} a5 {[%clk 00:40:38]} {[%emt 00:11:51]} 18. bxa5 {[%clk
00:52:47]} {[%emt 00:04:08]} Ra8 {[%clk 00:40:34]} {[%emt 00:00:33]} 19. a6
{[%clk 00:50:26]} {[%emt 00:02:52]} Ba3 {[%clk 00:35:46]} {[%emt 00:05:18]} 20.
Rab1 {[%clk 00:45:36]} {[%emt 00:05:20]} Qc5+ {[%clk 00:31:12]} {[%emt
00:05:04]} 21. Kh1 {[%clk 00:45:58]} {[%emt 00:00:08]} Qxc3 {[%clk 00:31:31]}
{[%emt 00:00:12]} 22. Rf3 {[%clk 00:45:18]} {[%emt 00:01:09]} Qa5 {[%clk
00:31:50]} {[%emt 00:00:09]} 23. Rh3 {[%clk 00:35:33]} {[%emt 00:10:17]} Rxa6
{[%clk 00:25:16]} {[%emt 00:07:04]} 24. exd5 {[%clk 00:33:39]} {[%emt
00:02:24]} cxd5 {[%clk 00:23:14]} {[%emt 00:02:32]} 25. Rb5 {[%clk 00:34:03]}
{[%emt 00:00:06]} Qa4 {[%clk 00:23:17]} {[%emt 00:00:25]} 26. Rxd5 {[%clk
00:30:09]} {[%emt 00:04:25]} Rd6 {[%clk 00:11:54]} {[%emt 00:11:54]} 27. Qd3
{[%clk 00:26:14]} {[%emt 00:04:25]} h6 {[%clk 00:11:01]} {[%emt 00:01:23]} 28.
Nc4 {[%clk 00:24:50]} {[%emt 00:01:54]} Re8 {[%clk 00:08:38]} {[%emt 00:02:52]}
29. Re3 {[%clk 00:12:40]} {[%emt 00:12:41]} Rxd5 {[%clk 00:04:56]} {[%emt
00:04:12]} 30. Qxd5 {[%clk 00:12:54]} {[%emt 00:00:16]} Rxe3 {[%clk 00:05:08]}
{[%emt 00:00:18]} 31. Nxe3 {[%clk 00:13:08]} {[%emt 00:00:15]} Bd6 {[%clk
00:02:17]} {[%emt 00:03:22]} 32. g3 {[%clk 00:08:32]} {[%emt 00:05:06]} Qa3
{[%clk 00:02:39]} {[%emt 00:00:08]} 33. Nf5 {[%clk 00:07:28]} {[%emt 00:01:35]}
Bf8 {[%clk 00:02:05]} {[%emt 00:01:03]} 34. Kg2 {[%clk 00:06:26]} {[%emt
00:01:32]} g6 {[%clk 00:02:04]} {[%emt 00:00:31]} 35. Nh4 {[%clk 00:04:26]}
{[%emt 00:02:29]} Qa6 {[%clk 00:01:54]} {[%emt 00:00:40]} 36. f5 {[%clk
00:02:41]} {[%emt 00:02:16]} g5 {[%clk 00:01:22]} {[%emt 00:01:02]} 37. Nf3
{[%clk 00:00:56]} {[%emt 00:02:15]} Qe2+ {[%clk 00:01:30]} {[%emt 00:00:21]} 38.
Kh3 {[%clk 00:00:40]} {[%emt 00:00:46]} h5 {[%clk 00:01:23]} {[%emt 00:00:37]}
39. f6 {[%clk 00:00:53]} {[%emt 00:00:18]} Qf1 {[%clk 00:01:36]} {[%emt
00:00:16]} 40. Nh4 {[%emt 00:00:18]} 0-1

[Event "Internationales Werder Bremen IM-Turnier"]
[Site "SV Werder Bremen, Clubräume in der Hemelinger Straße 17, Germany"]
[Date "2018.06.23"]
[Round "8.3"]
[White "Kardoeus, David"]
[Black "Ahlander, Björn"]
[Result "0-1"]
[TimeControl "90 Minuten/40 Züge + 30 Minuten/Rest + 30 Sekunden ab dem ersten Zug"]
[BlackTitle "IM"]
[WhiteFideId "12912050"]
[BlackFideId "1700251"]
[WhiteElo "2226"]
[BlackElo "2435"]

1. e4 {[%clk 01:30:56]} {[%emt 00:00:03]} c5 {[%clk 01:30:54]} {[%emt
00:00:06]} 2. Nf3 {[%clk 01:31:13]} {[%emt 00:00:13]} e6 {[%clk 01:31:19]}
{[%emt 00:00:05]} 3. d4 {[%clk 01:31:33]} {[%emt 00:00:11]} cxd4 {[%clk
01:31:41]} {[%emt 00:00:07]} 4. Nxd4 {[%clk 01:31:57]} {[%emt 00:00:05]} Nc6
{[%clk 01:32:03]} {[%emt 00:00:09]} 5. Nc3 {[%clk 01:32:16]} {[%emt 00:00:11]}
Qc7 {[%clk 01:32:24]} {[%emt 00:00:08]} 6. Be3 {[%clk 01:32:40]} {[%emt
00:00:07]} a6 {[%clk 01:32:30]} {[%emt 00:00:24]} 7. Qf3 {[%clk 01:33:00]}
{[%emt 00:00:11]} Nf6 {[%clk 01:31:36]} {[%emt 00:01:23]} 8. O-O-O {[%clk
01:33:19]} {[%emt 00:00:11]} Be7 {[%clk 01:30:32]} {[%emt 00:01:34]} 9. Qg3
{[%clk 01:28:33]} {[%emt 00:05:17]} Qxg3 {[%clk 01:29:22]} {[%emt 00:01:40]} 10.
hxg3 {[%clk 01:28:02]} {[%emt 00:01:01]} Ng4 {[%clk 01:28:41]} {[%emt
00:01:10]} 11. Nxc6 {[%clk 01:26:26]} {[%emt 00:02:08]} bxc6 {[%clk 01:21:58]}
{[%emt 00:07:11]} 12. Bb6 {[%clk 01:23:45]} {[%emt 00:03:11]} Rb8 {[%clk
01:18:52]} {[%emt 00:03:36]} 13. Na4 {[%clk 01:14:35]} {[%emt 00:09:41]} Rxb6
{[%clk 00:50:20]} {[%emt 00:29:02]} 14. Nxb6 {[%clk 01:14:35]} {[%emt
00:00:30]} Nxf2 {[%clk 00:50:42]} {[%emt 00:00:07]} 15. Nxc8 {[%clk 01:10:52]}
{[%emt 00:04:14]} Nxh1 {[%clk 00:39:28]} {[%emt 00:11:43]} 16. Bxa6 {[%clk
00:52:41]} {[%emt 00:18:42]} Nxg3 {[%clk 00:37:00]} {[%emt 00:02:58]} 17. e5
{[%clk 00:46:25]} {[%emt 00:06:42]} Ne4 {[%clk 00:31:03]} {[%emt 00:06:31]} 18.
Nb6 {[%clk 00:44:58]} {[%emt 00:01:57]} Bd8 {[%clk 00:28:26]} {[%emt 00:03:07]}
19. Nc4 {[%clk 00:39:13]} {[%emt 00:06:16]} Bg5+ {[%clk 00:27:52]} {[%emt
00:01:03]} 20. Kb1 {[%clk 00:39:27]} {[%emt 00:00:16]} Ke7 {[%clk 00:26:14]}
{[%emt 00:02:07]} 21. Nb6 {[%clk 00:31:11]} {[%emt 00:08:46]} Rd8 {[%clk
00:21:22]} {[%emt 00:05:23]} 22. c3 {[%clk 00:26:06]} {[%emt 00:05:36]} Nc5
{[%clk 00:16:12]} {[%emt 00:05:40]} 23. Be2 {[%clk 00:21:38]} {[%emt 00:04:58]}
f6 {[%clk 00:14:51]} {[%emt 00:01:52]} 24. b4 {[%clk 00:18:24]} {[%emt
00:03:43]} Ne4 {[%clk 00:14:52]} {[%emt 00:00:28]} 25. Kc2 {[%clk 00:17:10]}
{[%emt 00:01:45]} fxe5 {[%clk 00:14:03]} {[%emt 00:01:19]} 26. Bd3 {[%clk
00:15:37]} {[%emt 00:02:03]} Nf6 {[%clk 00:13:17]} {[%emt 00:01:16]} 27. Re1
{[%clk 00:15:58]} {[%emt 00:00:09]} Rb8 {[%clk 00:08:54]} {[%emt 00:04:53]} 28.
Nc4 {[%clk 00:16:22]} {[%emt 00:00:07]} Ra8 {[%clk 00:09:07]} {[%emt 00:00:18]}
29. Rxe5 {[%clk 00:15:39]} {[%emt 00:01:12]} Rxa2+ {[%clk 00:09:04]} {[%emt
00:00:32]} 30. Nb2 {[%clk 00:16:01]} {[%emt 00:00:09]} Bf4 {[%clk 00:08:29]}
{[%emt 00:01:04]} 31. Re1 {[%clk 00:16:06]} {[%emt 00:00:25]} h6 {[%clk
00:07:48]} {[%emt 00:01:11]} 32. Kb3 {[%clk 00:16:26]} {[%emt 00:00:10]} Ra8
{[%clk 00:08:00]} {[%emt 00:00:17]} 33. c4 {[%clk 00:15:30]} {[%emt 00:01:27]}
Rb8 {[%clk 00:07:00]} {[%emt 00:01:29]} 34. Ra1 {[%clk 00:15:34]} {[%emt
00:00:26]} Be5 {[%clk 00:05:57]} {[%emt 00:01:33]} 35. b5 {[%clk 00:16:02]}
{[%emt 00:00:01]} Bd4 {[%clk 00:05:10]} {[%emt 00:01:16]} 36. Ra6 {[%clk
00:15:48]} {[%emt 00:00:45]} e5 {[%clk 00:04:09]} {[%emt 00:01:30]} 37. Na4
{[%clk 00:16:13]} {[%emt 00:00:06]} e4 {[%clk 00:02:28]} {[%emt 00:02:10]} 38.
Be2 {[%clk 00:16:35]} {[%emt 00:00:09]} cxb5 {[%clk 00:01:53]} {[%emt
00:01:05]} 39. cxb5 {[%clk 00:17:03]} {[%emt 00:00:02]} Bf2 {[%clk 00:02:02]}
{[%emt 00:00:20]} 40. Nc3 {[%clk 00:16:38]} {[%emt 00:00:56]} d5 {[%clk
00:01:49]} {[%emt 00:00:43]} 41. Rc6 {[%clk 00:12:16]} {[%emt 00:04:52]} d4
{[%clk 00:00:39]} {[%emt 00:01:40]} 42. Rxf6 {[%clk 00:12:29]} {[%emt
00:00:17]} gxf6 {[%clk 00:29:35]} {[%emt 00:01:34]} 43. Nxe4 {[%clk 00:42:24]}
{[%emt 00:00:35]} Be3 {[%clk 00:28:59]} {[%emt 00:01:05]} 44. Kc4 {[%clk
00:42:12]} {[%emt 00:00:43]} Rc8+ {[%clk 00:22:08]} {[%emt 00:07:21]} 45. Kb4
{[%clk 00:36:21]} {[%emt 00:06:21]} Rc2 {[%clk 00:21:10]} {[%emt 00:01:28]} 46.
Bf3 {[%clk 00:36:02]} {[%emt 00:00:50]} d3 {[%clk 00:19:54]} {[%emt 00:01:45]}
47. Kb3 {[%clk 00:34:45]} {[%emt 00:01:47]} f5 {[%clk 00:19:00]} {[%emt
00:01:24]} 48. Nc3 {[%clk 00:34:24]} {[%emt 00:00:51]} Bd4 {[%clk 00:18:06]}
{[%emt 00:01:24]} 49. Nd5+ {[%clk 00:32:45]} {[%emt 00:02:09]} Kd6 {[%clk
00:18:32]} {[%emt 00:00:03]} 50. Nf4 {[%clk 00:24:35]} {[%emt 00:08:40]} Rc3+
{[%clk 00:17:44]} {[%emt 00:01:18]} 51. Kb4 {[%clk 00:23:55]} {[%emt 00:01:10]}
d2 {[%clk 00:17:36]} {[%emt 00:00:37]} 52. Bh5 {[%clk 00:23:31]} {[%emt
00:00:54]} Rc1 {[%clk 00:17:30]} {[%emt 00:00:36]} 0-1

[Event "Internationales Werder Bremen IM-Turnier"]
[Site "SV Werder Bremen, Clubräume in der Hemelinger Straße 17, Germany"]
[Date "2018.06.24"]
[Round "9.3"]
[White "Ahlander, Björn"]
[Black "Wachinger, Nikolas"]
[Result "1/2-1/2"]
[TimeControl "90 Minuten/40 Züge + 30 Minuten/Rest + 30 Sekunden ab dem ersten Zug"]
[WhiteTitle "IM"]
[WhiteFideId "1700251"]
[BlackFideId "12962791"]
[WhiteElo "2435"]
[BlackElo "2292"]

1. d4 {[%clk 01:30:56]} {[%emt 00:00:02]} Nf6 {[%clk 01:30:47]} {[%emt
00:00:12]} 2. Bg5 {[%clk 01:31:06]} {[%emt 00:00:21]} d5 {[%clk 01:29:39]}
{[%emt 00:01:39]} 3. Nc3 {[%clk 01:30:41]} {[%emt 00:00:55]} Nbd7 {[%clk
01:28:26]} {[%emt 00:01:43]} 4. Qd3 {[%clk 01:29:47]} {[%emt 00:01:23]} c6
{[%clk 01:26:24]} {[%emt 00:02:33]} 5. e4 {[%clk 01:23:04]} {[%emt 00:07:11]}
dxe4 {[%clk 01:24:25]} {[%emt 00:02:29]} 6. Nxe4 {[%clk 01:23:29]} {[%emt
00:00:04]} Nxe4 {[%clk 01:23:52]} {[%emt 00:01:05]} 7. Qxe4 {[%clk 01:23:49]}
{[%emt 00:00:10]} Qa5+ {[%clk 01:23:59]} {[%emt 00:00:22]} 8. Bd2 {[%clk
01:24:15]} {[%emt 00:00:04]} Qd5 {[%clk 01:24:21]} {[%emt 00:00:09]} 9. Qe3
{[%clk 01:22:47]} {[%emt 00:01:57]} Nf6 {[%clk 01:24:10]} {[%emt 00:00:41]} 10.
Nf3 {[%clk 01:07:03]} {[%emt 00:16:14]} Bf5 {[%clk 01:19:52]} {[%emt 00:04:48]}
11. Bd3 {[%clk 00:55:28]} {[%emt 00:12:05]} Bxd3 {[%clk 01:19:39]} {[%emt
00:00:44]} 12. Qxd3 {[%clk 00:55:55]} {[%emt 00:00:02]} Qe4+ {[%clk 01:19:55]}
{[%emt 00:00:14]} 13. Qxe4 {[%clk 00:56:16]} {[%emt 00:00:09]} Nxe4 {[%clk
01:20:17]} {[%emt 00:00:08]} 14. Be3 {[%clk 00:56:31]} {[%emt 00:00:15]} e6
{[%clk 01:17:50]} {[%emt 00:02:57]} 15. Ke2 {[%clk 00:56:19]} {[%emt 00:00:42]}
Be7 {[%clk 01:16:37]} {[%emt 00:01:44]} 16. Kd3 {[%clk 00:54:29]} {[%emt
00:02:20]} Nd6 {[%clk 01:12:54]} {[%emt 00:04:13]} 17. Ke2 {[%clk 00:54:56]}
{[%emt 00:00:03]} Nf5 {[%clk 01:11:37]} {[%emt 00:01:47]} 18. Bd2 {[%clk
00:48:09]} {[%emt 00:07:16]} Nh4 {[%clk 01:08:53]} {[%emt 00:03:15]} 19. Nxh4
{[%clk 00:44:41]} {[%emt 00:03:59]} Bxh4 {[%clk 01:09:13]} {[%emt 00:00:11]} 20.
Be3 {[%clk 00:44:52]} {[%emt 00:00:18]} Bf6 {[%clk 01:09:24]} {[%emt 00:00:19]}
21. Rhd1 {[%clk 00:44:48]} {[%emt 00:00:34]} O-O-O {[%clk 01:07:54]} {[%emt
00:02:00]} 22. Rd3 {[%clk 00:40:44]} {[%emt 00:04:34]} e5 {[%clk 01:05:37]}
{[%emt 00:02:48]} 23. dxe5 {[%clk 00:37:44]} {[%emt 00:03:29]} Bxe5 {[%clk
01:05:44]} {[%emt 00:00:23]} 24. c3 {[%clk 00:35:17]} {[%emt 00:02:57]} 1/2-1/2

[Event "Internationales Werder Bremen IM-Turnier"]
[Site "SV Werder Bremen, Clubräume in der Hemelinger Straße 17, Germany"]
[Date "2018.06.24"]
[Round "9.2"]
[White "Skliarov, Viktor"]
[Black "Reuker, Jari"]
[Result "1/2-1/2"]
[TimeControl "90 Minuten/40 Züge + 30 Minuten/Rest + 30 Sekunden ab dem ersten Zug"]
[WhiteTitle "IM"]
[WhiteFideId "14106736"]
[BlackFideId "12909300"]
[WhiteElo "2359"]
[BlackElo "2389"]

1. e4 {[%clk 01:30:57]} {[%emt 00:00:02]} e5 {[%clk 01:30:46]} {[%emt
00:00:14]} 2. Nf3 {[%clk 01:31:21]} {[%emt 00:00:06]} Nc6 {[%clk 01:31:10]}
{[%emt 00:00:05]} 3. Bb5 {[%clk 01:31:48]} {[%emt 00:00:05]} a6 {[%clk
01:31:33]} {[%emt 00:00:07]} 4. Bxc6 {[%clk 01:32:13]} {[%emt 00:00:05]} dxc6
{[%clk 01:31:57]} {[%emt 00:00:06]} 5. O-O {[%clk 01:32:39]} {[%emt 00:00:04]}
Qf6 {[%clk 01:31:26]} {[%emt 00:01:00]} 6. d4 {[%clk 01:26:54]} {[%emt
00:06:15]} exd4 {[%clk 01:31:50]} {[%emt 00:00:06]} 7. Bg5 {[%clk 01:27:18]}
{[%emt 00:00:06]} Qd6 {[%clk 01:32:15]} {[%emt 00:00:05]} 8. Nxd4 {[%clk
01:23:59]} {[%emt 00:03:49]} Be7 {[%clk 01:32:39]} {[%emt 00:00:05]} 9. Be3
{[%clk 01:21:36]} {[%emt 00:02:54]} Nh6 {[%clk 01:30:06]} {[%emt 00:03:02]} 10.
h3 {[%clk 01:19:36]} {[%emt 00:02:30]} g5 {[%clk 01:16:51]} {[%emt 00:13:46]}
11. Qh5 {[%clk 01:16:28]} {[%emt 00:03:39]} Qg6 {[%clk 01:13:57]} {[%emt
00:03:23]} 12. Qxg6 {[%clk 01:14:38]} {[%emt 00:02:21]} hxg6 {[%clk 01:13:59]}
{[%emt 00:00:27]} 13. f3 {[%clk 01:11:06]} {[%emt 00:04:02]} Bd7 {[%clk
01:10:56]} {[%emt 00:03:33]} 14. Nc3 {[%clk 01:10:51]} {[%emt 00:00:45]} O-O-O
{[%clk 01:10:42]} {[%emt 00:00:45]} 15. Rad1 {[%clk 01:05:24]} {[%emt
00:05:56]} b6 {[%clk 01:07:46]} {[%emt 00:03:26]} 16. Bf2 {[%clk 00:38:42]}
{[%emt 00:27:12]} Rhe8 {[%clk 00:59:48]} {[%emt 00:08:26]} 17. Rfe1 {[%clk
00:36:14]} {[%emt 00:02:59]} Bd6 {[%clk 00:56:59]} {[%emt 00:03:19]} 18. Nde2
{[%clk 00:35:04]} {[%emt 00:01:40]} Kb7 {[%clk 00:51:56]} {[%emt 00:05:33]} 19.
Nc1 {[%clk 00:31:47]} {[%emt 00:03:47]} f6 {[%clk 00:41:54]} {[%emt 00:10:32]}
20. Nd3 {[%clk 00:29:27]} {[%emt 00:02:50]} Nf7 {[%clk 00:41:29]} {[%emt
00:00:54]} 21. Bd4 {[%clk 00:29:10]} {[%emt 00:00:48]} Re6 {[%clk 00:39:07]}
{[%emt 00:02:52]} 22. Bxf6 {[%clk 00:23:36]} {[%emt 00:06:07]} Rxf6 {[%clk
00:39:20]} {[%emt 00:00:14]} 23. e5 {[%clk 00:24:03]} {[%emt 00:00:03]} Re6
{[%clk 00:27:08]} {[%emt 00:12:43]} 24. exd6 {[%clk 00:24:12]} {[%emt
00:00:22]} cxd6 {[%clk 00:27:18]} {[%emt 00:00:19]} 25. Rxe6 {[%clk 00:16:28]}
{[%emt 00:08:13]} Bxe6 {[%clk 00:27:46]} {[%emt 00:00:02]} 26. Re1 {[%clk
00:16:52]} {[%emt 00:00:06]} Re8 {[%clk 00:26:36]} {[%emt 00:01:40]} 27. Kf2
{[%clk 00:15:55]} {[%emt 00:01:27]} Kc7 {[%clk 00:26:06]} {[%emt 00:01:00]} 28.
b3 {[%clk 00:15:31]} {[%emt 00:00:54]} d5 {[%clk 00:21:00]} {[%emt 00:05:36]}
29. g4 {[%clk 00:14:43]} {[%emt 00:01:18]} Kd6 {[%clk 00:20:03]} {[%emt
00:01:27]} 30. Na4 {[%clk 00:15:02]} {[%emt 00:00:11]} Rb8 {[%clk 00:19:45]}
{[%emt 00:00:48]} 31. Kg3 {[%clk 00:15:00]} {[%emt 00:00:31]} c5 {[%clk
00:17:15]} {[%emt 00:03:01]} 32. c3 {[%clk 00:10:36]} {[%emt 00:04:54]} Bd7
{[%clk 00:16:08]} {[%emt 00:01:37]} 33. Nab2 {[%clk 00:10:55]} {[%emt
00:00:10]} a5 {[%clk 00:14:41]} {[%emt 00:01:57]} 34. c4 {[%clk 00:07:36]}
{[%emt 00:03:50]} Re8 {[%clk 00:05:01]} {[%emt 00:10:10]} 35. cxd5 {[%clk
00:05:42]} {[%emt 00:02:24]} Rxe1 {[%clk 00:02:34]} {[%emt 00:02:57]} 36. Nc4+
{[%clk 00:06:11]} {[%emt 00:00:03]} Kxd5 {[%clk 00:02:53]} {[%emt 00:00:10]} 37.
Nxe1 {[%clk 00:06:38]} {[%emt 00:00:03]} b5 {[%clk 00:02:24]} {[%emt 00:00:59]}
38. Nxa5 {[%clk 00:06:52]} {[%emt 00:00:17]} Kd4 {[%clk 00:01:33]} {[%emt
00:01:21]} 39. f4 {[%clk 00:05:27]} {[%emt 00:01:55]} gxf4+ {[%clk 00:00:59]}
{[%emt 00:01:04]} 40. Kxf4 {[%clk 00:05:51]} {[%emt 00:00:07]} g5 {[%clk
00:00:41]} {[%emt 00:00:48]} 41. Kg3 {[%clk 00:00:52]} {[%emt 00:05:29]} Ne5
{[%clk 00:20:46]} {[%emt 00:10:25]} 42. a3 {[%clk 00:18:20]} {[%emt 00:13:02]}
Be6 {[%clk 00:13:50]} {[%emt 00:07:26]} 43. a4 {[%clk 00:05:47]} {[%emt
00:13:03]} b4 {[%clk 00:09:04]} {[%emt 00:05:16]} 44. Nf3+ {[%clk 00:05:21]}
{[%emt 00:00:56]} Nxf3 {[%clk 00:09:11]} {[%emt 00:00:23]} 45. Kxf3 {[%clk
00:05:45]} {[%emt 00:00:06]} Bd5+ {[%clk 00:02:24]} {[%emt 00:07:17]} 46. Kg3
{[%clk 00:05:35]} {[%emt 00:00:40]} Ke5 {[%clk 00:01:44]} {[%emt 00:01:09]} 47.
h4 {[%clk 00:05:35]} {[%emt 00:00:31]} gxh4+ {[%clk 00:01:48]} {[%emt
00:00:26]} 48. Kxh4 {[%clk 00:06:01]} {[%emt 00:00:03]} Kf4 {[%clk 00:01:51]}
{[%emt 00:00:27]} 49. g5 {[%clk 00:05:22]} {[%emt 00:01:10]} Bf7 {[%clk
00:01:44]} {[%emt 00:00:37]} 50. Nb7 {[%clk 00:04:45]} {[%emt 00:01:06]} c4
{[%clk 00:01:32]} {[%emt 00:00:42]} 51. bxc4 {[%clk 00:05:11]} {[%emt
00:00:04]} Kf5 {[%clk 00:01:02]} {[%emt 00:01:00]} 52. Na5 {[%clk 00:02:32]}
{[%emt 00:03:09]} Be8 {[%clk 00:01:08]} {[%emt 00:00:23]} 53. c5 {[%clk
00:02:50]} {[%emt 00:00:13]} Bxa4 {[%clk 00:00:52]} {[%emt 00:00:45]} 54. c6
{[%clk 00:03:15]} {[%emt 00:00:05]} Ke6 {[%clk 00:00:51]} {[%emt 00:00:31]} 55.
c7 {[%clk 00:02:02]} {[%emt 00:01:44]} Kd7 {[%clk 00:00:56]} {[%emt 00:00:25]}
56. g6 {[%clk 00:02:07]} {[%emt 00:00:25]} Bc2 {[%clk 00:01:19]} {[%emt
00:00:06]} 57. g7 {[%clk 00:02:21]} {[%emt 00:00:16]} Bh7 {[%clk 00:01:39]}
{[%emt 00:00:10]} 58. Nb3 {[%clk 00:01:51]} {[%emt 00:01:01]} Kxc7 {[%clk
00:01:45]} {[%emt 00:00:23]} 59. Kg3 {[%clk 00:02:16]} {[%emt 00:00:04]} Kc6
{[%clk 00:01:17]} {[%emt 00:00:58]} 60. Kf2 {[%clk 00:02:40]} {[%emt 00:00:06]}
Kb5 {[%clk 00:01:18]} {[%emt 00:00:29]} 61. Ke1 {[%clk 00:02:22]} {[%emt
00:00:47]} Bg8 {[%clk 00:00:56]} {[%emt 00:00:52]} 62. Nd2 {[%clk 00:02:46]}
{[%emt 00:00:06]} Ka4 {[%clk 00:01:02]} {[%emt 00:00:25]} 63. Kd1 {[%clk
00:02:41]} {[%emt 00:00:35]} Ka3 {[%clk 00:01:26]} {[%emt 00:00:06]} 64. Kc1
{[%clk 00:02:58]} {[%emt 00:00:12]} Ka2 {[%clk 00:01:16]} {[%emt 00:00:41]} 65.
Kc2 {[%clk 00:03:04]} {[%emt 00:00:24]} Bh7 {[%clk 00:01:41]} {[%emt 00:00:04]}
66. Kc1 {[%clk 00:03:30]} {[%emt 00:00:04]} Ka3 {[%clk 00:01:40]} {[%emt
00:00:32]} 67. Kd1 {[%clk 00:03:39]} {[%emt 00:00:20]} Kb2 {[%clk 00:01:53]}
{[%emt 00:00:17]} 68. Ke1 {[%clk 00:03:16]} {[%emt 00:00:51]} Kc2 {[%clk
00:02:05]} {[%emt 00:00:20]} 69. Ke2 {[%clk 00:03:42]} {[%emt 00:00:05]} Bg8
{[%clk 00:02:28]} {[%emt 00:00:06]} 70. Ke1 {[%clk 00:03:38]} {[%emt 00:00:33]}
Kd3 {[%clk 00:02:33]} {[%emt 00:00:26]} 71. Kd1 {[%clk 00:04:01]} {[%emt
00:00:06]} Bh7 {[%clk 00:02:03]} {[%emt 00:01:01]} 72. Kc1 {[%clk 00:04:07]}
{[%emt 00:00:24]} Ke3 {[%clk 00:01:28]} {[%emt 00:01:03]} 73. Nc4+ {[%clk
00:04:05]} {[%emt 00:00:34]} Kd4 {[%clk 00:01:48]} {[%emt 00:00:10]} 74. Nd2
{[%clk 00:04:29]} {[%emt 00:00:05]} Ke5 {[%clk 00:02:01]} {[%emt 00:00:17]} 75.
Kb2 {[%clk 00:04:44]} {[%emt 00:00:15]} Bg8 {[%clk 00:02:26]} {[%emt 00:00:05]}
76. Nf3+ {[%clk 00:05:01]} {[%emt 00:00:12]} Ke4 {[%clk 00:02:29]} {[%emt
00:00:27]} 77. Ne1 {[%clk 00:05:05]} {[%emt 00:00:26]} b3 {[%clk 00:02:40]}
{[%emt 00:00:20]} 78. Nc2 {[%clk 00:05:31]} {[%emt 00:00:04]} bxc2 {[%clk
00:03:02]} {[%emt 00:00:08]} 79. Kxc2 {[%clk 00:05:59]} {[%emt 00:00:03]} Bf7
{[%emt 00:01:11]} 1/2-1/2